bitfinex/quotes_BTCUSD_20250614
["timestamp","ask_amount","ask_price","bid_price","bid_amount"]
[1749894553401,7.28987291,104990.0,104980.0,0.03574216]
[1749894553610,7.28987291,104990.0,104980.0,0.01789463]
[1749894553819,7.28987291,104990.0,104980.0,0.03574216]
[1749894554058,7.08627291,104990.0,104980.0,0.03574216]
[1749894554284,7.28983291,104990.0,104980.0,0.03574216]
[1749894554564,7.28983291,104990.0,104980.0,0.01789463]
[1749894554791,7.28983291,104990.0,104980.0,0.02681839]
[1749894555014,7.28983291,104990.0,104980.0,0.04467257]
[1749894555239,7.28983291,104990.0,104980.0,0.02682061]
[1749894555472,7.08627291,104990.0,104980.0,0.03574659]
[1749894555719,7.28983291,104990.0,104980.0,0.02682061]
[1749894555942,6.5312205,104990.0,104980.0,0.03574655]
[1749894556159,6.5312205,104990.0,104980.0,0.01789463]
[1749894556160,6.7346605,104990.0,104980.0,0.01789463]
[1749894556386,6.7346605,104990.0,104980.0,0.03574654]
[1749894556832,6.7346605,104990.0,104980.0,0.03574626]
[1749894557050,7.28992,104990.0,104980.0,0.0357462]
[1749894557258,7.28992,104990.0,104980.0,0.03576348]
[1749894557922,7.28992,104990.0,104980.0,0.03576349]
[1749894558152,7.28992,104990.0,104980.0,0.01789463]
[1749894558634,7.28992,104990.0,104980.0,0.03576349]
[1749894559058,7.28992,104990.0,104980.0,0.01789463]
[1749894559271,7.28992,104990.0,104980.0,0.03576348]
[1749894559522,7.28992,104990.0,104980.0,0.01789463]
[1749894560194,7.28992,104990.0,104980.0,0.03576349]
[1749894560409,7.28992,104990.0,104980.0,0.01789463]
[1749894560625,7.08648,104990.0,104980.0,0.03576349]
[1749894560844,7.28964,104990.0,104980.0,0.03576348]
[1749894561274,7.28964,104990.0,104980.0,0.01789463]
[1749894562196,7.08648,104990.0,104980.0,0.03576348]
[1749894562417,7.2896,104990.0,104980.0,0.03576348]
[1749894562845,6.73450759,104990.0,104980.0,0.03576348]
[1749894563051,6.73442759,104990.0,104980.0,0.03576346]
[1749894563267,6.73442759,104990.0,104980.0,0.03576343]
[1749894563490,6.73442759,104990.0,104980.0,0.03576341]
[1749894563693,6.53142759,104990.0,104980.0,0.03576341]
[1749894563900,6.73442759,104990.0,104980.0,0.03576341]
[1749894564108,6.73442759,104990.0,104980.0,0.03576342]
[1749894564327,7.28948,104990.0,104980.0,0.03576341]
[1749894564534,7.28948,104990.0,104980.0,0.01789463]
[1749894564785,7.28948,104990.0,104980.0,0.03576341]
[1749894566368,7.28948,104990.0,104980.0,0.01789463]
[1749894566817,7.28948,104990.0,104980.0,0.03576346]
[1749894567032,7.30888,104990.0,104980.0,0.03576346]
[1749894567252,7.30888,104990.0,104980.0,0.01789463]
[1749894567482,7.30888,104990.0,104980.0,0.03575944]
[1749894567926,7.30888,104990.0,104980.0,0.01789463]
[1749894568142,7.28948,104990.0,104980.0,0.03575941]
[1749894568834,7.28948,104990.0,104980.0,0.01789463]
[1749894569054,7.28948,104990.0,104980.0,0.03575934]
[1749894569476,7.28948,104990.0,104980.0,0.03575933]
[1749894569898,7.28948,104990.0,104980.0,0.01789463]
[1749894570111,7.28948,104990.0,104980.0,0.03575933]
[1749894571003,7.28948,104990.0,104980.0,0.03575866]
[1749894571004,7.08648,104990.0,104980.0,0.03575866]
[1749894571270,6.53142759,104990.0,104980.0,0.06443056]
[1749894571486,6.60926847,104990.0,104980.0,0.06443056]
[1749894571702,6.60926847,104990.0,104980.0,0.08229381]
[1749894571933,6.60926847,104990.0,104980.0,0.0822938]
[1749894572151,6.60926847,104990.0,104980.0,0.06443056]
[1749894572387,6.05417606,104990.0,104980.0,0.07475787]
[1749894572612,6.40670847,104990.0,104980.0,0.07475787]
[1749894572837,6.60922847,104990.0,104980.0,0.05689463]
[1749894573079,6.05417606,104990.0,104980.0,0.07475774]
[1749894573286,6.60922847,104990.0,104980.0,0.07475775]
[1749894574846,6.40670847,104990.0,104980.0,0.07475775]
[1749894575080,6.60922847,104990.0,104980.0,0.10509695]
[1749894575419,6.60922847,104990.0,104980.0,0.07475772]
[1749894575670,6.60922847,104990.0,104980.0,0.07475771]
[1749894576174,6.60922847,104990.0,104980.0,0.05689463]
[1749894576628,6.05417606,104990.0,104980.0,0.07475771]
[1749894576629,6.60922847,104990.0,104980.0,0.07475771]
[1749894576882,6.60922847,104990.0,104980.0,0.05689463]
[1749894577380,1.35670847,104990.0,104980.0,0.05689463]
[1749894577632,1.55906847,104990.0,104980.0,0.05689463]
[1749894578986,1.35670847,104990.0,104980.0,0.05689463]
[1749894579206,1.55902847,104990.0,104980.0,0.05689463]
[1749894585947,1.35670847,104990.0,104980.0,0.05689463]
[1749894586161,1.55878847,104990.0,104980.0,0.05689463]
[1749894588329,1.54815291,104990.0,104980.0,0.28453285]
[1749894588534,1.53862847,104990.0,104980.0,0.08449494]
[1749894588744,1.33670847,104990.0,104980.0,0.08449494]
[1749894588955,1.53862847,104990.0,104980.0,0.27500741]
[1749894589408,1.53462847,104990.0,104980.0,0.27500741]
[1749894589871,1.53662847,104990.0,104980.0,0.28453303]
[1749894590295,1.53362847,104990.0,104980.0,0.25693272]
[1749894590515,1.53362847,104990.0,104980.0,0.05689463]
[1749894591192,1.53562847,104990.0,104980.0,0.2474071]
[1749894591409,1.53562847,104990.0,104980.0,0.06642025]
[1749894592063,1.53562847,104990.0,104980.0,0.05689463]
[1749894594263,1.53562847,104990.0,104980.0,0.2474071]
[1749894594479,1.53562847,104990.0,104980.0,0.05689463]
[1749894594909,1.53562847,104990.0,104980.0,0.25693272]
[1749894595121,1.53562847,104990.0,104980.0,0.26645825]
[1749894596171,1.53450847,104990.0,104980.0,0.05689463]
[1749894597507,1.53450847,104990.0,104980.0,0.2474071]
[1749894598376,1.13370847,104990.0,104980.0,0.25693272]
[1749894598588,0.93393389,104990.0,104980.0,0.38311242]
[1749894598798,0.57810057,104990.0,104980.0,0.38311242]
[1749894599009,0.63926936,104990.0,104980.0,0.33311242]
[1749894599517,0.83928831,104990.0,104980.0,0.33311242]
[1749894600390,0.83928903,104990.0,104980.0,0.33311242]
[1749894600902,0.28423662,104990.0,104980.0,0.33311242]
[1749894601106,0.83928903,104990.0,104980.0,0.33311242]
[1749894601531,0.83928903,104990.0,104980.0,0.38311242]
[1749894601770,0.83928903,104990.0,104980.0,0.33311242]
[1749894603118,0.79716903,104990.0,104980.0,0.38311242]
[1749894603324,0.08421758,104990.0,104980.0,0.33311242]
[1749894603778,0.62974537,104990.0,104980.0,0.33311242]
[1749894603989,0.58762537,104990.0,104980.0,0.33311242]
[1749894604196,0.62974537,104990.0,104980.0,0.33311242]
[1749894605061,0.62974528,104990.0,104980.0,0.33311242]
[1749894605477,0.63926981,104990.0,104980.0,0.33311242]
[1749894607031,0.0842174,104990.0,104980.0,0.33311242]
[1749894607279,0.63926981,104990.0,104980.0,0.33311242]
[1749894609345,0.63926981,104990.0,104980.0,0.38311242]
[1749894609548,0.62974528,104990.0,104980.0,0.33311242]
[1749894610212,0.62022084,104990.0,104980.0,0.33311242]
[1749894610426,0.04612,104990.0,104980.0,0.3355084]
[1749894610632,0.61069649,104990.0,104980.0,0.3355084]
[1749894611480,0.56857649,104990.0,104980.0,0.3355084]
[1749894611690,0.60117241,104990.0,104980.0,0.3355084]
[1749894611897,0.6106964,104990.0,104980.0,0.3355084]
[1749894612918,0.6106964,104990.0,104980.0,0.40491276]
[1749894613131,0.05564399,104990.0,104980.0,0.40491276]
[1749894613352,0.004,104990.0,104980.0,0.40491276]
[1749894613572,0.004,104990.0,104980.0,1.05620693]
[1749894613785,0.004,104990.0,104980.0,0.51901868]
[1749894614425,0.55905241,104990.0,104980.0,0.62769868]
[1749894614632,0.55705241,104990.0,104980.0,0.6276986]
[1749894614838,0.002,104990.0,104980.0,0.62769862]
[1749894615049,0.002,104990.0,104980.0,0.62969862]
[1749894615340,0.002,104990.0,104980.0,0.61183452]
[1749894615765,0.002,104990.0,104980.0,0.62969862]
[1749894616007,1.26052884,105000.0,104990.0,0.30906738]
[1749894616218,1.26052884,105000.0,104990.0,0.25906738]
[1749894616424,1.2510054,105000.0,104990.0,0.33850491]
[1749894616766,1.2510054,105000.0,104990.0,0.32064081]
[1749894617184,1.26052884,105000.0,104990.0,0.32064081]
[1749894617781,1.2510054,105000.0,104990.0,0.37064081]
[1749894618009,1.2510054,105000.0,104990.0,0.32064081]
[1749894618222,1.2510054,105000.0,104990.0,0.37064081]
[1749894618436,1.26052893,105000.0,104990.0,0.32064081]
[1749894618678,1.2510054,105000.0,104990.0,0.32064081]
[1749894618882,1.2224358,105000.0,104990.0,0.37064081]
[1749894619098,1.23195879,105000.0,104990.0,0.37064081]
[1749894619319,0.87165241,105000.0,104990.0,0.32064081]
[1749894619557,0.3166,105000.0,104990.0,0.32064081]
[1749894619794,0.3166,105000.0,104990.0,0.41688257]
[1749894621078,0.96628033,105010.0,105000.0,0.30904651]
[1749894621281,0.42075018,105010.0,105000.0,0.48548692]
[1749894621497,0.97580259,105010.0,105000.0,0.48548692]
[1749894621695,0.40170575,105010.0,105000.0,0.53548692]
[1749894621911,0.95675816,105010.0,105000.0,0.48548692]
[1749894622118,0.97580295,105010.0,105000.0,0.48548692]
[1749894622388,0.97580286,105010.0,105000.0,0.41764651]
[1749894622803,0.96628042,105010.0,105000.0,0.41764651]
[1749894623001,0.42075045,105010.0,105000.0,0.41764651]
[1749894623250,0.97580286,105010.0,105000.0,0.41764651]
[1749894624997,0.96628042,105010.0,105000.0,0.41764651]
[1749894625414,0.42075054,105010.0,105000.0,0.41764651]
[1749894625626,0.97580286,105010.0,105000.0,0.41764651]
[1749894627525,0.97580286,105010.0,105000.0,0.37732651]
[1749894627733,0.98532549,105010.0,105000.0,0.37732651]
[1749894629655,0.99484821,105010.0,105000.0,0.21904651]
[1749894629900,0.99484821,105010.0,105000.0,0.42724651]
[1749894630101,0.00952326,105000.0,104990.0,0.46394416]
[1749894630318,0.56457549,105000.0,104990.0,0.50354416]
[1749894630522,0.57409866,105000.0,104990.0,0.50354416]
[1749894630735,0.58362192,105000.0,104990.0,0.50354416]
[1749894631365,0.58362192,105000.0,104990.0,0.20954276]
[1749894631605,0.59314545,105000.0,104990.0,0.36770276]
[1749894631816,0.79314535,105000.0,104990.0,0.21154276]
[1749894632028,0.79314607,105000.0,104990.0,0.38114756]
[1749894632243,0.59314608,105000.0,104990.0,0.39067164]
[1749894632724,0.8041229,105000.0,104990.0,0.2135433]
[1749894632941,0.8237229,105000.0,104990.0,0.2135433]
[1749894633167,0.8237229,105000.0,104990.0,0.38110747]
[1749894633820,0.26867049,105000.0,104990.0,0.38110747]
[1749894634035,0.8237229,105000.0,104990.0,0.38110756]
[1749894634475,0.81419964,105000.0,104990.0,0.38110756]
[1749894635325,0.81419964,105000.0,104990.0,0.3715833]
[1749894635533,0.80467611,105000.0,104990.0,0.3715833]
[1749894636162,0.80467611,105000.0,104990.0,0.38110756]
[1749894636369,0.78507611,105000.0,104990.0,0.38110756]
[1749894636585,0.76457611,105000.0,104990.0,0.38110756]
[1749894636797,0.76457611,105000.0,104990.0,0.3715833]
[1749894637428,0.78537611,105000.0,104990.0,0.3715833]
[1749894639612,0.78537611,105000.0,104990.0,0.39063155]
[1749894639818,0.76457611,105000.0,104990.0,0.39063155]
[1749894640061,1.36082852,105000.0,104990.0,0.39039155]
[1749894640277,0.80577611,105000.0,104990.0,0.39039155]
[1749894640489,0.61529956,105000.0,104990.0,0.39039155]
[1749894640703,0.59489956,105000.0,104990.0,0.39039155]
[1749894641351,0.78537575,105000.0,104990.0,0.38086747]
[1749894641559,0.79489955,105000.0,104990.0,0.38086747]
[1749894643056,1.34995196,105000.0,104990.0,0.38086747]
[1749894643261,0.79489955,105000.0,104990.0,0.38086747]
[1749894644953,0.79489955,105000.0,104990.0,0.3713433]
[1749894645214,0.2504237,105000.0,104990.0,0.35213433]
[1749894645431,1.35100481,105000.0,104990.0,0.35213433]
[1749894646058,1.35100481,105000.0,104990.0,0.15964]
[1749894647147,1.35100481,105000.0,104990.0,0.002]
[1749894647595,1.35100481,105000.0,104980.0,0.38630351]
[1749894647864,0.56457658,104990.0,104980.0,0.38630351]
[1749894648062,0.40714925,104990.0,104980.0,0.38630351]
[1749894648270,0.41667378,104990.0,104980.0,0.40550351]
[1749894648493,0.60716802,104990.0,104980.0,0.38645382]
[1749894648706,0.62621672,104990.0,104980.0,0.20012865]
[1749894648915,0.62621672,104990.0,104980.0,0.37665917]
[1749894649125,0.64701672,104990.0,104980.0,0.37697926]
[1749894649339,0.62621672,104990.0,104980.0,0.37697926]
[1749894650195,0.78364405,104990.0,104980.0,0.38850443]
[1749894650824,0.78364405,104990.0,104980.0,0.39050443]
[1749894651448,0.77412006,104990.0,104980.0,0.38097926]
[1749894651665,0.77527145,104990.0,104980.0,0.05409074]
[1749894651873,0.77527145,104990.0,104980.0,0.37137436]
[1749894652087,0.79457145,104990.0,104980.0,0.37137436]
[1749894654269,1.12504674,104990.0,104980.0,0.16181074]
[1749894655369,1.12750674,104990.0,104980.0,0.20412874]
[1749894656235,1.12750674,104990.0,104980.0,0.19460321]
[1749894656443,1.12750674,104990.0,104980.0,0.20412883]
[1749894656873,1.14810674,104990.0,104980.0,0.20412883]
[1749894657296,1.14810674,104990.0,104980.0,0.01361636]
[1749894657510,1.14810674,104990.0,104980.0,0.20412883]
[1749894659741,1.14810674,104990.0,104980.0,0.21365436]
[1749894661302,1.12750674,104990.0,104980.0,0.2231798]
[1749894662865,0.57245433,104990.0,104980.0,0.2231798]
[1749894663118,1.12750674,104990.0,104980.0,0.2231798]
[1749894663333,1.12750674,104990.0,104980.0,0.29566126]
[1749894663545,1.12750674,104990.0,104980.0,0.23270515]
[1749894664397,1.13703136,104990.0,104980.0,0.23270515]
[1749894664715,1.13703136,104990.0,104980.0,0.24223041]
[1749894664908,1.13703136,104990.0,104980.0,0.24222996]
[1749894665733,0.35904897,104990.0,104980.0,0.24222996]
[1749894665942,0.95554138,104990.0,104980.0,0.24222941]
[1749894666150,1.14603571,104990.0,104980.0,0.24222941]
[1749894666811,1.15556042,104990.0,104980.0,0.23270443]
[1749894667224,1.15556042,104990.0,104980.0,0.2422295]
[1749894668707,0.60050801,104990.0,104980.0,0.2422295]
[1749894668917,1.15556042,104990.0,104980.0,0.2422295]
[1749894669457,1.15556042,104990.0,104980.0,0.23270443]
[1749894669887,1.14603607,104990.0,104980.0,0.213654]
[1749894670515,1.14603607,104990.0,104980.0,0.22317926]
[1749894671358,1.13651145,104990.0,104980.0,0.20412883]
[1749894671574,1.16518674,104990.0,104980.0,0.19460321]
[1749894671794,1.16518674,104990.0,104980.0,0.20412874]
[1749894672232,1.16518674,104990.0,104980.0,0.21365418]
[1749894672451,1.16518674,104990.0,104980.0,0.22317953]
[1749894672886,1.14618674,104990.0,104980.0,0.22317953]
[1749894673182,1.15571136,104990.0,104980.0,0.2327047]
[1749894673390,1.13651136,104990.0,104980.0,0.2327047]
[1749894673626,1.13651136,104990.0,104980.0,0.22317953]
[1749894674883,1.13651136,104990.0,104980.0,0.23270479]
[1749894675959,1.13651136,104990.0,104980.0,0.20412874]
[1749894676169,1.13651136,104990.0,104980.0,0.21365409]
[1749894677003,1.13651136,104990.0,104980.0,0.20412874]
[1749894677206,1.13651136,104990.0,104980.0,0.21365418]
[1749894677409,1.13651136,104990.0,104980.0,0.22317953]
[1749894677617,1.13651136,104990.0,104980.0,0.21365418]
[1749894678021,1.17721136,104990.0,104980.0,0.20412874]
[1749894678725,1.17721136,104990.0,104980.0,0.00409074]
[1749894678928,1.43060058,104990.0,104980.0,0.00409074]
[1749894679332,0.80218337,104990.0,104980.0,0.00409074]
[1749894679566,1.35723578,104990.0,104980.0,0.00409074]
[1749894679777,1.35723578,104990.0,104980.0,0.00209074]
[1749894680193,1.35723578,104990.0,104980.0,9.074e-05]
[1749894684231,1.35707578,104990.0,104980.0,9.074e-05]
[1749894684680,6.61946676,104990.0,104980.0,9.074e-05]
[1749894685330,6.52331754,104990.0,104980.0,9.074e-05]
[1749894690351,6.50053312,104990.0,104980.0,9.074e-05]
[1749894690558,6.52329244,104990.0,104980.0,9.074e-05]
[1749894691614,6.52329244,104990.0,104980.0,0.01795995]
[1749894691813,6.52329244,104990.0,104980.0,9.074e-05]
[1749894692240,6.52329244,104990.0,104980.0,0.01795995]
[1749894692495,6.52329244,104990.0,104980.0,9.074e-05]
[1749894692703,6.52329244,104990.0,104980.0,0.01795995]
[1749894695942,6.52329244,104990.0,104980.0,9.074e-05]
[1749894696155,6.52329244,104990.0,104980.0,0.01795995]
[1749894697439,6.52329244,104990.0,104980.0,9.074e-05]
[1749894697685,6.52329244,104990.0,104980.0,0.01795995]
[1749894697904,6.52329244,104990.0,104980.0,9.074e-05]
[1749894698123,6.52329244,104990.0,104980.0,0.01795995]
[1749894698558,6.52329244,104990.0,104980.0,9.074e-05]
[1749894698770,6.52329244,104990.0,104980.0,0.01795995]
[1749894700075,6.52329244,104990.0,104980.0,9.074e-05]
[1749894700311,6.57382175,104990.0,104980.0,9.074e-05]
[1749894700568,6.57382175,104990.0,104980.0,0.01795995]
[1749894700774,6.52329244,104990.0,104980.0,0.01795995]
[1749894702887,6.52329244,104990.0,104980.0,9.074e-05]
[1749894703503,6.52329244,104990.0,104980.0,0.0179596]
[1749894704129,6.52329244,104990.0,104980.0,9.074e-05]
[1749894704376,6.52329244,104990.0,104980.0,0.0179596]
[1749894705661,5.96824003,104990.0,104980.0,0.0179596]
[1749894705883,6.52329244,104990.0,104980.0,0.0179596]
[1749894706772,6.52329244,104990.0,104980.0,9.074e-05]
[1749894706971,6.52329244,104990.0,104980.0,0.0179596]
[1749894707184,6.52329244,104990.0,104980.0,9.074e-05]
[1749894707899,6.52329244,104990.0,104980.0,0.0179596]
[1749894708547,6.52329244,104990.0,104980.0,9.074e-05]
[1749894708746,6.52329244,104990.0,104980.0,0.0179596]
[1749894709174,6.52329244,104990.0,104980.0,0.01795961]
[1749894709418,6.94799183,104990.0,104980.0,0.01795961]
[1749894709628,7.21211917,104990.0,104980.0,0.01796106]
[1749894709854,7.24074017,104990.0,104980.0,0.02689638]
[1749894710042,7.24074017,104990.0,104980.0,0.02689655]
[1749894710663,7.24774017,104990.0,104980.0,0.00902601]
[1749894710867,7.24374017,104990.0,104980.0,0.01796128]
[1749894711083,7.24074017,104990.0,104980.0,0.02689655]
[1749894711285,7.24074017,104990.0,104980.0,0.02689658]
[1749894711286,7.24474017,104990.0,104980.0,0.02689658]
[1749894711493,7.24774017,104990.0,104980.0,0.00902604]
[1749894711701,7.24774017,104990.0,104980.0,0.02689665]
[1749894711964,7.24774017,104990.0,104980.0,0.02689666]
[1749894712173,7.24774017,104990.0,104980.0,0.00902611]
[1749894712565,7.24774017,104990.0,104980.0,9.074e-05]
[1749894712999,7.24774017,104990.0,104980.0,0.00902613]
[1749894713341,7.24774017,104990.0,104980.0,0.00902623]
[1749894713768,7.21929101,104990.0,104980.0,0.00902623]
[1749894713971,7.21929101,104990.0,104980.0,9.074e-05]
[1749894714178,7.24775704,104990.0,104980.0,9.074e-05]
[1749894714335,7.24775704,104990.0,104980.0,0.00902623]
[1749894714539,7.24775704,104990.0,104980.0,9.074e-05]
[1749894714741,7.24775704,104990.0,104980.0,0.00902623]
[1749894714971,7.24775704,104990.0,104980.0,9.074e-05]
[1749894715223,7.24775704,104990.0,104980.0,0.00902623]
[1749894715426,7.24775704,104990.0,104980.0,0.00902621]
[1749894715644,7.24775704,104990.0,104980.0,9.074e-05]
[1749894715848,7.24775704,104990.0,104980.0,0.00902624]
[1749894716261,7.24775704,104990.0,104980.0,9.074e-05]
[1749894716472,2.21229789,104990.0,104980.0,9.074e-05]
[1749894716680,7.29089794,104990.0,104980.0,9.074e-05]
[1749894720065,6.88424656,104990.0,104980.0,9.074e-05]
[1749894721821,7.15876656,104990.0,104980.0,9.074e-05]
[1749894722042,7.45059958,104990.0,104980.0,9.074e-05]
[1749894722473,7.25295958,104990.0,104980.0,9.074e-05]
[1749894722694,2.39983958,104990.0,104980.0,9.074e-05]
[1749894722920,1.83020632,104990.0,104980.0,9.074e-05]
[1749894723190,7.06020632,104990.0,104980.0,9.074e-05]
[1749894723436,7.71140795,104990.0,104980.0,9.074e-05]
[1749894723854,7.51456795,104990.0,104980.0,9.074e-05]
[1749894724066,7.71140795,104990.0,104980.0,9.074e-05]
[1749894724762,6.46445391,104990.0,104980.0,9.074e-05]
[1749894724975,6.79950632,104990.0,104980.0,9.074e-05]
[1749894725192,7.01950632,104990.0,104980.0,9.074e-05]
[1749894725412,6.99105344,104990.0,104980.0,9.074e-05]
[1749894725623,6.77105344,104990.0,104980.0,9.074e-05]
[1749894726046,6.99105344,104990.0,104980.0,9.074e-05]
[1749894728073,6.99097344,104990.0,104980.0,9.074e-05]
[1749894728744,1.94097344,104990.0,104980.0,9.074e-05]
[1749894728953,6.99097344,104990.0,104980.0,9.074e-05]
[1749894730040,7.01942632,104990.0,104980.0,9.074e-05]
[1749894730497,6.82266632,104990.0,104980.0,9.074e-05]
[1749894730684,7.01938632,104990.0,104980.0,9.074e-05]
[1749894732036,6.46433391,104990.0,104980.0,9.074e-05]
[1749894732274,7.01934632,104990.0,104980.0,0.04079074]
[1749894732486,6.99089344,104990.0,104980.0,0.04079074]
[1749894733351,6.99089344,104990.0,104980.0,0.05865998]
[1749894733573,6.96227244,104990.0,104980.0,0.05865998]
[1749894734004,6.46935068,104990.0,104980.0,0.05865998]
[1749894734214,6.66603068,104990.0,104980.0,0.24917217]
[1749894734437,6.66603068,104990.0,104980.0,0.23130321]
[1749894734650,6.66603068,104990.0,104980.0,0.04079074]
[1749894734908,6.51003068,104990.0,104980.0,0.25869719]
[1749894735117,6.66603068,104990.0,104980.0,0.25035418]
[1749894735337,6.66607068,104990.0,104980.0,0.27774737]
[1749894735555,6.66603068,104990.0,104980.0,0.26822202]
[1749894735781,6.66603068,104990.0,104980.0,0.26822198]
[1749894736014,6.65650606,104990.0,104980.0,0.24917101]
[1749894736250,6.45982606,104990.0,104980.0,0.24917101]
[1749894736459,6.43706674,104990.0,104980.0,0.24917101]
[1749894736681,6.63374674,104990.0,104980.0,0.2490869]
[1749894737116,1.58374674,104990.0,104980.0,0.25861252]
[1749894737373,1.58374674,104990.0,104980.0,0.25861244]
[1749894737580,1.58374674,104990.0,104980.0,0.25861243]
[1749894737788,1.58374674,104990.0,104980.0,0.26813796]
[1749894738008,1.58374674,104990.0,104980.0,0.26813795]
[1749894738232,1.02869433,104990.0,104980.0,0.26813795]
[1749894738461,1.58374674,104990.0,104980.0,0.33996069]
[1749894738940,1.08774674,104990.0,104980.0,0.33996053]
[1749894739171,1.58382674,104990.0,104980.0,0.37217711]
[1749894739385,1.58382674,104990.0,104980.0,0.3399602]
[1749894739594,1.58382674,104990.0,104980.0,0.27766285]
[1749894740036,1.58382674,104990.0,104980.0,0.2598798]
[1749894740449,1.58382674,104990.0,104980.0,0.25035436]
[1749894740653,1.58382674,104990.0,104980.0,0.26813722]
[1749894740861,1.58382674,104990.0,104980.0,0.30035436]
[1749894741075,1.58382674,104990.0,104980.0,0.25035436]
[1749894741346,1.58382674,104990.0,104980.0,0.26813722]
[1749894741787,1.58382674,104990.0,104980.0,0.0585736]
[1749894742011,1.58382674,104990.0,104980.0,0.10857364]
[1749894742227,1.58382674,104990.0,104980.0,0.04079074]
[1749894742436,1.58382674,104990.0,104980.0,0.05857366]
[1749894742665,1.58382674,104990.0,104980.0,0.04079074]
[1749894742885,1.58382674,104990.0,104980.0,0.24082865]
[1749894743100,1.58382674,104990.0,104980.0,0.25861157]
[1749894743766,1.58382674,104990.0,104980.0,0.24908613]
[1749894744428,1.58382674,104990.0,104980.0,9.074e-05]
[1749894745301,1.58382674,104990.0,104980.0,0.04189074]
[1749894747503,1.58382674,104990.0,104980.0,9.074e-05]
[1749894750094,1.58382674,104990.0,104980.0,0.03899074]
[1749894750913,1.58382674,104990.0,104980.0,9.074e-05]
[1749894751119,1.30930674,104990.0,104980.0,9.074e-05]
[1749894754683,1.30930674,104990.0,104980.0,0.03899074]
[1749894758912,1.30930674,104990.0,104980.0,9.074e-05]
[1749894759732,1.30930674,104990.0,104980.0,0.05009074]
[1749894760185,1.30930674,104990.0,104980.0,9.074e-05]
[1749894761181,1.33209149,104990.0,104980.0,9.074e-05]
[1749894761406,1.33209149,104990.0,104980.0,0.02099074]
[1749894762159,0.77703908,104990.0,104980.0,0.02099074]
[1749894762349,1.33209149,104990.0,104980.0,0.02099074]
[1749894763210,1.33209149,104990.0,104980.0,0.21150321]
[1749894763632,1.33209149,104990.0,104980.0,0.22102883]
[1749894764241,1.33209149,104990.0,104980.0,0.24132883]
[1749894765262,0.6088524,104990.0,104980.0,0.30737589]
[1749894765485,1.16390481,104990.0,104980.0,0.31690106]
[1749894765705,0.0476,104990.0,104980.0,0.93147845]
[1749894765916,0.0476,104990.0,104980.0,0.37642604]
[1749894766121,0.61217631,104990.0,104980.0,0.37642604]
[1749894766329,0.61870039,104990.0,104980.0,0.39429102]
[1749894766770,0.61117631,104990.0,104980.0,0.39429102]
[1749894766989,0.60717631,104990.0,104980.0,0.39429102]
[1749894767195,0.56657631,104990.0,104980.0,0.39429103]
[1749894767405,0.56857631,104990.0,104980.0,0.39429102]
[1749894767832,0.57810039,104990.0,104980.0,0.34729475]
[1749894768042,0.57810039,104990.0,104980.0,0.34729473]
[1749894768225,0.57810039,104990.0,104980.0,0.34729501]
[1749894768454,0.57810039,104990.0,104980.0,0.34729511]
[1749894768665,0.57810039,104990.0,104980.0,0.32942977]
[1749894769082,0.57810039,104990.0,104980.0,0.3472951]
[1749894769296,0.57810039,104990.0,104980.0,0.32942977]
[1749894769507,0.57810039,104990.0,104980.0,0.3472951]
[1749894769715,0.57810039,104990.0,104980.0,0.32942977]
[1749894770137,0.57810039,104990.0,104980.0,0.44344432]
[1749894770342,0.57810039,104990.0,104980.0,0.59920432]
[1749894770773,0.58762465,104990.0,104980.0,0.58133899]
[1749894771003,0.57810039,104990.0,104980.0,0.59920432]
[1749894771206,0.57810039,104990.0,104980.0,0.58133899]
[1749894771626,0.004,104990.0,104980.0,0.59920432]
[1749894771843,0.004,104990.0,104980.0,0.59920426]
[1749894772050,0.004,104990.0,104980.0,0.59920401]
[1749894772254,0.004,104990.0,104980.0,0.58133899]
[1749894772466,0.004,104990.0,104980.0,0.59920387]
[1749894772674,0.004,104990.0,104980.0,0.58133899]
[1749894772886,0.004,104990.0,104980.0,0.59920353]
[1749894773112,0.004,104990.0,104980.0,0.58133899]
[1749894773327,0.55905241,104990.0,104980.0,0.59920352]
[1749894773533,0.55905241,104990.0,104980.0,0.59920353]
[1749894773737,0.56857631,104990.0,104980.0,0.59920353]
[1749894773946,0.55905241,104990.0,104980.0,0.59920355]
[1749894774411,0.5685764,104990.0,104980.0,0.53133899]
[1749894774632,0.5685764,104990.0,104980.0,0.54920357]
[1749894775256,0.5685764,104990.0,104980.0,0.53133899]
[1749894775468,0.5685764,104990.0,104980.0,0.54914271]
[1749894775686,0.5685764,104990.0,104980.0,0.53133899]
[1749894775878,0.55905241,104990.0,104980.0,0.43518977]
[1749894776053,0.5685764,104990.0,104980.0,0.43518977]
[1749894776256,0.5685764,104990.0,104980.0,0.45299392]
[1749894776422,0.57810048,104990.0,104980.0,0.45299392]
[1749894776831,0.57810048,104990.0,104980.0,0.45299396]
[1749894777250,0.57810048,104990.0,104980.0,0.53133899]
[1749894777888,0.02304807,104990.0,104980.0,0.53133899]
[1749894778083,0.57810048,104990.0,104980.0,0.53133899]
[1749894778313,0.57810048,104990.0,104980.0,0.43518977]
[1749894779077,0.55905241,104990.0,104980.0,0.43518977]
[1749894779297,0.5685764,104990.0,104980.0,0.43518977]
[1749894779497,0.58762519,104990.0,104980.0,0.48518977]
[1749894779696,0.58762519,104990.0,104980.0,0.43518977]
[1749894780252,0.58762519,104990.0,104980.0,0.43522977]
[1749894780792,0.78764414,104990.0,104980.0,0.26990479]
[1749894781047,0.76859589,104990.0,104980.0,0.19709074]
[1749894781254,0.75907136,104990.0,104980.0,9.074e-05]
[1749894781471,0.75907136,104990.0,104980.0,0.15589074]
[1749894782147,0.75907136,104990.0,104980.0,0.34640321]
[1749894782361,0.75907136,104990.0,104980.0,0.15589074]
[1749894782574,0.75907136,104990.0,104980.0,0.34640321]
[1749894783185,0.20401895,104990.0,104980.0,0.34640321]
[1749894783397,0.69831227,104990.0,104980.0,0.34640321]
[1749894784357,0.69831227,104990.0,104980.0,9.074e-05]
[1749894784579,0.69831227,104990.0,104980.0,0.35592874]
[1749894784789,0.69831227,104990.0,104980.0,0.365454]
[1749894786394,0.69831227,104990.0,104980.0,9.074e-05]
[1749894786598,0.73811227,104990.0,104980.0,0.20012883]
[1749894787000,0.73811227,104990.0,104980.0,0.20965436]
[1749894787945,0.73811227,104990.0,104980.0,0.2274933]
[1749894788403,0.77859227,104990.0,104980.0,0.23701874]
[1749894788614,0.77859227,104990.0,104980.0,0.23701852]
[1749894788819,0.77859227,104990.0,104980.0,0.23701857]
[1749894789023,0.77859227,104990.0,104980.0,0.20965436]
[1749894789217,0.77859227,104990.0,104980.0,0.22749317]
[1749894789450,0.77859227,104990.0,104980.0,0.22749321]
[1749894789656,0.77859227,104990.0,104980.0,0.22749304]
[1749894790257,0.76906765,104990.0,104980.0,0.20012883]
[1749894790597,0.76906765,104990.0,104980.0,0.22749337]
[1749894791104,0.76906765,104990.0,104980.0,0.23701872]
[1749894791239,0.27477433,104990.0,104980.0,0.23701872]
[1749894791448,0.76906765,104990.0,104980.0,0.23701872]
[1749894791751,0.76906765,104990.0,104980.0,0.21917971]
[1749894791991,0.76906765,104990.0,104980.0,0.23701851]
[1749894792212,0.76906765,104990.0,104980.0,0.2370185]